[Event "Czech Championship 2022"]
[Site "Usti nad Labem"]
[Date "2022.05.15"]
[Round "2.16"]
[White "Vojta, Jakub"]
[Black "Bartos, Jan"]
[Result "0-1"]
[ECO "C11"]
[WhiteElo "2396"]
[BlackElo "2125"]
[Annotator "TA"]
[PlyCount "66"]
[EventDate "2022.05.12"]
[EventType "swiss"]
[EventCountry "CZE"]
[SourceTitle "playchess.com"]
[Source "ChessBase"]
[SourceQuality "1"]
[TimeControl "40/5400+30:1800+30"]

{[%evp 20,66,0,14,6,0,0,0,12,14,6,8,25,29,25,30,42,64,108,97,86,0,6,0,0,0,31,89,90,96,84,14,28,-43,-61,-174,-198,-182,-182,-553,-560,-767,-778,-678,-511,-29989,-29990,-29989,-29990]} 1. e4 {[%emt 0:00:04]} e6 {[%emt 0:00:19]} 2. d4 {[%emt 0:00:06]} d5 {[%emt 0:00:03]} 3. Nc3 {[%emt 0:00:04]} Nf6 {[%emt 0:00:25]} 4. e5 {[%emt 0:02:46]} Nfd7 {[%emt 0:00:33]} 5. f4 {[%emt 0:00:14]} c5 {[%emt 0:00:05]} 6. Nf3 {[%emt 0:00:17]} Nc6 {[%emt 0:00:08]} 7. Be3 {[%emt 0:00:20]} cxd4 {[%emt 0:00:07]} 8. Nxd4 {[%emt 0:00:24]} Qb6 {[%emt 0:00:17]} 9. Qd2 {[%emt 0:00:14]} Qxb2 {[%emt 0:00:19]} 10. Rb1 {[%emt 0:00:05]} Qa3 {[%emt 0:00:13]} 11. Bb5 {[%emt 0:00:20]} Nxd4 {[%emt 0:00:36] C11: French: Classical System: 4 e5 and 4 Bg5 dxe4.} 12. Bxd4 {[%emt 0:00:11][%cal Of4f5]} ({Of course not} 12. Qxd4 a6 13. Bxd7+ Bxd7 14. Rxb7 Rc8 $17) 12... a6 {[%emt 0:00:28]} 13. Bxd7+ {[%emt 0:00:14]} Bxd7 {[%emt 0:00:07] The position is equal.} 14. Rb3 {[%emt 0:00:05]} Qe7 {[%emt 0:00:13]} 15. Rxb7 {[%emt 0:00:04]} Qd8 {[%emt 0:04:03]} 16. O-O {[%emt 0:02:32]} Qc8 {[%emt 0:11:18]} 17. Rfb1 {[%emt 0:02:42][%cal Of4f5]} Bc5 {[%emt 0:02:11]} 18. f5 {[%emt 0:09:02] [#]} O-O $146 {[%emt 0:03:30]} ({Predecessor:} 18... Bxd4+ 19. Qxd4 Bb5 20. Rb6 O-O 21. a4 Qc4 22. Nxb5 axb5 23. Qxc4 bxc4 24. fxe6 fxe6 {½-½ (66) Alekseenko,K (2671)-Christiansen,J (2558) Khanty-Mansiysk 2019}) 19. f6 $1 {[%emt 0:03:42][%cal Od2g5] White wants to mate with Qg5!} gxf6 {[%emt 0:01:45] [#]} 20. exf6 {[%emt 0:12:11]} ({White should try} 20. Ne2 $1 $16 Kh8 21. Qh6) 20... Kh8 $11 {[%emt 0:00:19]} 21. Kh1 {[%emt 0:08:06]} Bxd4 {[%emt 0:14:14]} 22. Qxd4 {[%emt 0:00:02]} Rg8 {[%emt 0:01:02]} (22... Bb5 $5 23. Re7 Qc4 24. Qxc4 (24. Nxb5 axb5 25. Qd2 Qxa2 $17) 24... Bxc4 $15) 23. Qe5 {[%emt 0:06:48]} Qe8 {[%emt 0:11:19] [#]} 24. Ne2 $1 {[%emt 0:12:35] Black must now prevent R1b3.} d4 {[%emt 0:26:07]} 25. Nf4 {[%emt 0:06:13]} ({Avoid the trap} 25. Qxd4 $2 Bc6 26. Qg1 Bxg2+ 27. Qxg2 Rxg2 28. Kxg2 Qc6+ 29. Kf2 Rg8 $19) (25. Nxd4 $16 {With the idea R1b6.} Bc6 26. Nxc6 Qxc6 27. Qe2) 25... Rc8 {[%emt 0:05:40]} 26. R7b3 {[%emt 0:02:23]} ({Better is} 26. Qxd4 $11 Bc6 27. Re7) 26... Ba4 $15 {[%emt 0:02:02][%cal Bd7a4,Ba4c2,Bc2f5,Bf5g4][%mdl 32]} (26... Rxc2 $2 27. Rh3 Rc5 28. Qxc5 $18) 27. Rh3 {[%emt 0:16:22]} ({Only move:} 27. Rg3 $1 $15) 27... Bxc2 $19 {[%emt 0:00:44]} 28. Re1 {[%emt 0:01:49]} Bf5 $36 {[%emt 0:01:22][%mdl 2048] Keeping White busy.} 29. Rh5 {[%emt 0:03:30]} (29. Rb3) 29... Qd7 {[%emt 0:00:58]} 30. h3 {[%emt 0:04:30]} d3 {[%emt 0:00:28] Hoping for ...d2.} 31. Qe3 {[%emt 0:00:36]} Rc2 {[%emt 0:04:28] Strongly threatening ...Qc6.} 32. g4 {[%emt 0:01:51]} (32. Rxf5 $19 exf5 33. Qxd3 Qxd3 34. Nxd3) 32... Qc6+ {[%emt 0:00:34]} 33. Kg1 {[%emt 0:00:04] [#]} Bxg4 $1 {[%emt 0:02:30][%mdl 512] Weighted Error Value: White=0.78/Black=0.13 (very precise)} 0-1

[Event "Czech Championship 2022"]
[Site "Usti nad Labem"]
[Date "2022.05.15"]
[Round "2.17"]
[White "Nemec, Jachym"]
[Black "Hladky, Tadeas"]
[Result "1-0"]
[ECO "D15"]
[WhiteElo "2367"]
[BlackElo "2119"]
[Annotator "TA"]
[PlyCount "52"]
[EventDate "2022.05.12"]
[EventType "swiss"]
[EventCountry "CZE"]
[SourceTitle "playchess.com"]
[Source "ChessBase"]
[SourceQuality "1"]
[TimeControl "40/5400+30:1800+30"]

{[%evp 10,52,44,43,46,45,39,38,40,42,42,39,58,24,35,26,29,16,57,48,120,108,123,116,146,141,141,143,150,136,205,197,190,189,283,278,372,393,501,476,802,751,737,710,897]} 1. d4 {[%emt 0:00:02] Gelfand,Boris} d5 {[%emt 0:00:08]} 2. c4 {[%emt 0:00:04]} c6 {[%emt 0:00:06]} 3. Nf3 {[%emt 0:00:05]} Nf6 {[%emt 0:00:10]} 4. Nc3 {[%emt 0:00:05]} a6 {[%emt 0:00:05]} 5. a4 {[%emt 0:00:10][%cal Ba2a4,Ba4a5,Ba5b6][%mdl 32]} Bf5 {[%emt 0:10:43]} 6. Qb3 {[%emt 0:00:24]} Ra7 {[%emt 0:00:30] D15: Slav Defence: 4 Nc3 a6 and gambit lines after 4 Nc3 dxc4.} 7. a5 {[%emt 0:00:06]} e6 {[%emt 0:00:48]} 8. Qb6 {[%emt 0:00:14]} Qxb6 {[%emt 0:00:39] White is slightly better.} 9. axb6 {[%emt 0:00:04]} Ra8 {[%emt 0:00:07]} 10. c5 {[%emt 0:00:03]} Nbd7 {[%emt 0:02:10]} 11. e3 {[%emt 0:00:12]} Be7 {[%emt 0:03:42]} 12. Be2 {[%emt 0:00:03]} O-O {[%emt 0:04:14]} 13. Nd2 {[%emt 0:00:52][%cal Bf3d2,Bd2b3,Bb3a5][%mdl 32] [#]} Bc2 $146 {[%emt 0:18:55]} ({Predecessor:} 13... e5 14. O-O Rfe8 15. Nb3 Bf8 16. Bd2 Bc2 17. Na5 exd4 18. exd4 Nxc5 19. dxc5 d4 {1-0 (36) Gelfand,B (2712)-Morozevich,A (2749) Astana 2001 CBM 084 [Gelfand,Boris]}) 14. b4 {[%emt 0:03:04]} Rad8 {[%emt 0:09:20]} (14... Ne4 $14 15. Ndxe4 Bxe4) 15. Ra2 $16 {[%emt 0:01:17]} Bg6 {[%emt 0:00:14]} 16. Nb3 {[%emt 0:00:33]} Nb8 {[%emt 0:00:14]} 17. Na5 {[%emt 0:01:29]} Rd7 {[%emt 0:00:10]} 18. f3 {[%emt 0:00:25]} Ne8 {[%emt 0:07:29]} 19. Nd1 {[%emt 0:01:40][%cal Bc3d1,Bd1f2,Bf2d3][%mdl 32] White is more active.} f5 {[%emt 0:11:06]} (19... Bh4+ $16 {was necessary.} 20. g3 Bf6) 20. Nf2 $18 {[%emt 0:00:22]} Bf6 {[%emt 0:00:07]} 21. Nd3 {[%emt 0:01:00] Prevents e5.} Kf7 {[%emt 0:00:44]} (21... Bf7 {was worth a try.} 22. O-O g5) 22. O-O {[%emt 0:02:21]} Ke7 {[%emt 0:00:33]} 23. Bd2 {[%emt 0:00:12][%cal Bc1d2,Bd2e1,Be1g3][%mdl 32]} Kd8 {[%emt 0:03:05]} 24. Be1 {[%emt 0:01:14] White is clearly winning.} Bf7 {[%emt 0:09:01]} (24... Kc8 $142 25. Bg3 f4) 25. Bg3 {[%emt 0:00:35]} Kc8 {[%emt 0:00:08]} 26. Rfa1 {[%emt 0:00:18]} g5 {[%emt 0:03:05] Weighted Error Value: White=0.02 (flawless) /Black=0.37} 1-0

[Event "Czech Championship 2022"]
[Site "Usti nad Labem"]
[Date "2022.05.15"]
[Round "2.18"]
[White "Pokrupa, Marek"]
[Black "Hrbek, Stepan"]
[Result "0-1"]
[ECO "A07"]
[WhiteElo "2117"]
[BlackElo "2303"]
[Annotator "TA"]
[PlyCount "82"]
[EventDate "2022.05.12"]
[EventType "swiss"]
[EventCountry "CZE"]
[SourceTitle "playchess.com"]
[Source "ChessBase"]
[SourceQuality "1"]
[TimeControl "40/5400+30:1800+30"]

{[%evp 9,82,-8,-13,-4,-6,-37,-22,-28,-3,-8,-13,-4,0,-48,0,-43,-4,3,52,28,44,0,33,22,41,24,37,-45,111,-79,-75,-98,-46,-27,0,0,36,41,75,97,91,35,76,95,75,77,83,77,125,112,109,0,0,0,0,-187,-182,-626,-623,-624,-623,-616,-616,-601,-587,-571,-436,-431,-429,-429,-253,-412,-407,-382,-382]} 1. g3 {[%emt 0:00:04]} e5 {[%emt 0:00:18]} 2. Bg2 {[%emt 0:00:07]} d5 {[%emt 0:00:33]} 3. d3 {[%emt 0:00:05]} Nc6 {[%emt 0:01:36]} 4. Nf3 {[%emt 0:01:09]} f6 {[%emt 0:00:58]} 5. c3 {[%emt 0:02:12]} Be6 {[%emt 0:03:06]} 6. b4 {[%emt 0:04:05] A07: Réti Opening: New York and Capablanca Systems.} Qd7 {[%emt 0:04:15]} 7. Qa4 {[%emt 0:02:45] [#]} a6 $146 {[%emt 0:13:52]} ({Predecessor:} 7... a5 8. O-O b5 9. Qxb5 axb4 10. cxb4 Nxb4 11. Qxd7+ Kxd7 12. a3 Bd6 13. Ne1 Ne7 14. Nc3 Rhb8 15. f4 Bc5+ 16. Kh1 Bd4 17. Bd2 Nbc6 18. a4 Rb2 {0-1 (18) Vassallo Barroche,M (2378)-Sadhwani,R (2555) Peniche 2021}) 8. Nbd2 {[%emt 0:00:43] The position is equal.} b5 {[%emt 0:07:29]} 9. Qc2 {[%emt 0:18:04]} a5 {[%emt 0:00:25]} 10. bxa5 {[%emt 0:00:39]} Nxa5 {[%emt 0:00:12]} 11. Bb2 {[%emt 0:02:08]} (11. e4 $11 {deserves consideration.}) 11... Bd6 {[%emt 0:01:50]} (11... c5 $15 {should be considered.}) 12. O-O {[%emt 0:04:51]} Ne7 {[%emt 0:04:27]} 13. e4 {[%emt 0:08:28]} c6 {[%emt 0:09:40]} (13... dxe4 $11 {is superior.} 14. Nxe4 O-O) 14. a4 $14 {[%emt 0:02:11]} O-O {[%emt 0:06:31]} 15. Ba3 {[%emt 0:10:41]} Bxa3 {[%emt 0:04:50]} 16. Rxa3 {[%emt 0:01:19]} Qd6 {[%emt 0:00:13]} 17. Raa1 {[%emt 0:07:13]} b4 {[%emt 0:03:54][%cal Bb5b4,Bb4b3][%mdl 32]} 18. d4 {[%emt 0:02:09]} (18. cxb4 $14 Qxb4 19. Rfb1) 18... Rab8 $2 {[%emt 0:05:38]} (18... b3 $1 $15 19. Qb2 Rab8) 19. Rfb1 $2 {[%emt 0:04:10]} (19. cxb4 $16 {and life is bright.} Rxb4 20. dxe5 fxe5 21. Rfb1 (21. exd5 cxd5 22. Qc3 Nac6 $17)) 19... b3 $1 $17 {[%emt 0:05:56]} 20. Qc1 {[%emt 0:01:54] [#]} (20. Nxb3 $2 Nxb3 21. Rxb3 Rxb3 22. Qxb3 dxe4 $19) 20... dxe4 {[%emt 0:04:49] Black is much more active.} (20... Ng6 $1 $17) 21. Nxe4 $15 {[%emt 0:03:57]} Qc7 {[%emt 0:00:07]} 22. Nc5 $36 {[%emt 0:02:52][%mdl 2048] White has the initiative.} Bf5 {[%emt 0:05:07]} 23. Rb2 {[%emt 0:00:25]} Qd6 {[%emt 0:01:35]} 24. Nd2 {[%emt 0:05:15]} Bc2 {[%emt 0:03:55]} (24... exd4 25. cxd4 Qxd4 26. Ndxb3 $14) 25. Bf1 {[%emt 0:06:16]} (25. Rxc2 $16 bxc2 26. Nde4) 25... Kh8 {[%emt 0:08:00]} 26. Nc4 {[%emt 0:00:47]} Nxc4 {[%emt 0:00:07]} 27. Bxc4 {[%emt 0:00:03]} exd4 {[%emt 0:00:10]} 28. cxd4 {[%emt 0:00:14]} Nf5 {[%emt 0:02:01]} (28... Qxd4 $142 29. Bxb3 Bf5) 29. Bxb3 $16 {[%emt 0:06:35]} Bxb3 {[%emt 0:01:01]} 30. Rxb3 {[%emt 0:02:46]} (30. Nxb3 $16 Qd5 31. Qc3) 30... Nxd4 $11 {[%emt 0:00:27]} 31. Re3 {[%emt 0:01:08] Inhibits Ne2+.} Qd5 {[%emt 0:01:34] Inhibits Qc4. Strongly threatening ...Rbe8.} 32. a5 $2 {[%emt 0:00:12] [#]} (32. Na6 $1 $11 {and White stays safe.} Rbd8 33. Nb4) 32... Rbe8 $1 $19 {[%emt 0:00:37] ...Rxe3 is the strong threat.} (32... Rb5 33. Ne4 Rxa5 34. Rxa5 Qxa5 35. Qc4 $11) 33. Ra4 $2 {[%emt 0:00:52]} ({But not} 33. Rxe8 $2 Rxe8 34. Qd1 Ne2+ 35. Qxe2 Rxe2 $19) (33. a6 Ne2+ 34. Rxe2 Rxe2 35. Qf1) 33... Ne2+ {[%emt 0:00:51]} 34. Rxe2 {[%emt 0:00:02]} Rxe2 {[%emt 0:00:04]} 35. a6 {[%emt 0:00:07]} Rfe8 {[%emt 0:00:23] ( -> ...Re1+)} ({Worse is} 35... Qf3 36. Qf1 $17) 36. Ra1 {[%emt 0:00:54]} Qd4 {[%emt 0:00:07] Prevents Qc3.} 37. Qf1 {[%emt 0:00:28] [#]} Qxa1 {[%emt 0:01:00][%mdl 512]} 38. Qxa1 {[%emt 0:00:48]} Re1+ {[%emt 0:00:06]} 39. Qxe1 {[%emt 0:00:04]} Rxe1+ {[%emt 0:00:04]} 40. Kg2 {[%emt 0:00:18]} Ra1 {[%emt 0:00:05]} 41. Kf3 {[%emt 0:30:20]} Ra5 {[%emt 0:30:05] Weighted Error Value: White=0.55/Black=0.26 (precise)} 0-1

[Event "Czech Championship 2022"]
[Site "Usti nad Labem"]
[Date "2022.05.15"]
[Round "2.19"]
[White "Sykora, Marek"]
[Black "Paulus, Vaclav"]
[Result "1-0"]
[ECO "B25"]
[WhiteElo "2249"]
[BlackElo "2093"]
[Annotator "TA"]
[PlyCount "83"]
[EventDate "2022.05.12"]
[EventType "swiss"]
[EventCountry "CZE"]
[SourceTitle "playchess.com"]
[Source "ChessBase"]
[SourceQuality "1"]
[TimeControl "40/5400+30:1800+30"]

{[%evp 20,83,0,-20,-7,-12,-8,-39,-53,-54,-27,-62,-53,-85,-52,-63,-58,-110,-134,-117,83,66,67,47,51,-37,268,149,231,229,222,137,135,142,146,152,142,118,259,264,371,376,345,229,329,344,410,410,381,385,350,333,294,275,284,206,277,274,787,814,799,789,829,666,783,666]} 1. e4 {[%emt 0:00:04]} c5 {[%emt 0:00:04]} 2. Nc3 {[%emt 0:00:11]} Nc6 {[%emt 0:00:04]} 3. g3 {[%emt 0:00:19]} g6 {[%emt 0:00:06]} 4. Bg2 {[%emt 0:00:16]} Bg7 {[%emt 0:00:07]} 5. d3 {[%emt 0:00:53]} d6 {[%emt 0:00:10]} 6. f4 {[%emt 0:01:03]} e6 {[%emt 0:00:08]} 7. Nf3 {[%emt 0:00:14]} Nge7 {[%emt 0:00:05]} 8. O-O {[%emt 0:00:23]} O-O {[%emt 0:00:04]} 9. Be3 {[%emt 0:02:11]} Rb8 {[%emt 0:00:05] 9...b6 is a critical line.} 10. Qd2 {[%emt 0:05:36]} b5 {[%emt 0:00:14]} 11. Bf2 {[%emt 0:09:26]} b4 {[%emt 0:02:50] B25: Closed Sicilian: 3 g3, lines without early Be3.} 12. Nd1 {[%emt 0:00:35]} a5 {[%emt 0:01:53][%cal Ba7a5,Ba5a4][%mdl 32] [#]} 13. c3 $146 {[%emt 0:06:05]} ({Predecessor:} 13. Re1 Qc7 14. g4 f5 15. exf5 exf5 16. g5 Bb7 17. c3 Rfe8 18. Ne3 bxc3 19. bxc3 {1-0 (33) Brettschneider,S (2276)-Moshtael,W (2210) Germany 2014}) 13... a4 {[%emt 0:02:50] Black is slightly better.} 14. d4 {[%emt 0:03:05]} d5 {[%emt 0:12:39]} 15. exd5 {[%emt 0:03:27]} Nxd5 {[%emt 0:02:28][%cal Be7d5,Bd5b4,Bb4d3][%mdl 32]} 16. dxc5 {[%emt 0:03:53]} Ba6 {[%emt 0:03:11]} 17. Re1 {[%emt 0:01:53]} a3 {[%emt 0:01:41] Strongly threatening ...axb2.} 18. bxa3 {[%emt 0:13:47]} ({White should try} 18. Ne5 $15 axb2 19. Qxb2 Bxe5 20. fxe5) 18... bxc3 $17 {[%emt 0:00:51]} 19. Qc2 {[%emt 0:01:06]} Ncb4 $2 {[%emt 0:16:10]} 20. axb4 $16 {[%emt 0:00:13]} Nxb4 {[%emt 0:00:01]} 21. Qa4 {[%emt 0:04:19]} Nd3 {[%emt 0:12:23] Threatens to win with ...c2.} 22. Ne5 {[%emt 0:08:52]} c2 $2 {[%emt 0:03:30][%mdl 8192] [#]} (22... Nxe1 $15 23. Bxe1 (23. Qxa6 $2 c2 $19) 23... c2) 23. Ne3 {[%emt 0:02:29]} (23. Qxa6 $2 Nxe1 24. Nc3 Bxe5 25. fxe5 Nd3 $19) (23. Nxd3 $1 $18 Bxd3 (23... Qxd3 24. Rc1) 24. Rc1) 23... Bxe5 {[%emt 0:08:07]} (23... Nxf2 $16 {was worth a try.} 24. Qxa6 Bxe5 25. fxe5 Nd3) 24. fxe5 $18 {[%emt 0:00:52]} Nxf2 {[%emt 0:00:01]} 25. Qxa6 {[%emt 0:10:55]} Nd3 {[%emt 0:00:18]} 26. Nxc2 {[%emt 0:00:13]} Nxe1 {[%emt 0:02:21]} 27. Rxe1 {[%emt 0:00:06]} Rb2 {[%emt 0:00:29]} 28. Qc4 {[%emt 0:02:40] Hoping for Re2.} ({Stronger than} 28. Qe2 Qa5 29. Be4 Qxc5+ 30. Qf2 Rc8 $11) 28... Qd2 {[%emt 0:00:47]} (28... Qa5 $16 {is a better defense.} 29. Rf1 Rb5) 29. Re2 {[%emt 0:00:19]} Qd1+ {[%emt 0:00:28]} (29... Qa5 {was called for.} 30. Bf3 Rfb8) 30. Kf2 {[%emt 0:00:22]} Rd8 {[%emt 0:00:46]} 31. Qc3 {[%emt 0:03:40] Inhibits Rd2.} ({Less strong is} 31. Ne3 Rxe2+ 32. Qxe2 Qd4 $16) 31... Rb1 {[%emt 0:01:30]} (31... Rxa2 $142 32. Be4 Rc8) 32. Qe1 {[%emt 0:01:43]} Qxe1+ {[%emt 0:03:10]} 33. Nxe1 {[%emt 0:00:21]} ({Weaker is} 33. Rxe1 Rb5 34. c6 Rd2+ 35. Re2 Rxe2+ 36. Kxe2 Rxe5+ 37. Kd3 Kf8 $18) 33... Rc1 {[%emt 0:00:10]} 34. c6 {[%emt 0:00:07]} Kf8 {[%emt 0:03:07]} 35. Be4 {[%emt 0:00:49]} Rc4 {[%emt 0:00:56]} 36. Kf3 {[%emt 0:02:44]} Ke7 {[%emt 0:00:19]} 37. Rb2 {[%emt 0:01:26]} Rc3+ {[%emt 0:00:37]} 38. Ke2 {[%emt 0:00:25]} Ra3 $2 {[%emt 0:02:01]} (38... Rd4) 39. Rb7+ {[%emt 0:00:48] White is clearly winning.} Ke8 {[%emt 0:00:06]} 40. c7 {[%emt 0:00:30] Intending Bc6+ and mate.} Rxa2+ {[%emt 0:00:45]} 41. Ke3 {[%emt 0:32:33] White wants to mate with Bc6+.} Ra3+ {[%emt 0:31:01]} 42. Kf4 {[%emt 0:00:16] Weighted Error Value: White=0.36/Black=0.61} 1-0

[Event "Czech Championship 2022"]
[Site "Usti nad Labem"]
[Date "2022.05.15"]
[Round "2.20"]
[White "Freisler, Pavel"]
[Black "Ret, Adam Josef"]
[Result "1/2-1/2"]
[ECO "E05"]
[WhiteElo "2239"]
[BlackElo "2093"]
[Annotator "TA"]
[PlyCount "104"]
[EventDate "2022.05.12"]
[EventType "swiss"]
[EventCountry "CZE"]
[SourceTitle "playchess.com"]
[Source "ChessBase"]
[SourceQuality "1"]
[TimeControl "40/5400+30:1800+30"]

{[%evp 15,103,19,33,48,38,41,49,29,68,57,66,50,80,66,88,88,87,81,78,54,44,47,41,58,79,79,77,69,75,73,81,73,50,76,79,69,75,39,39,16,25,16,22,0,0,0,0,0,0,0,0,0,0,0,0,0,0,2,5,0,0,0,0,0,0,0,11,0,0,0,0,0,0,0,0,0,0,0,0,0,0,0,0,0,0,0,0,0,0,0]} 1. d4 {[%emt 0:00:21]} e6 {[%emt 0:00:20]} 2. Nf3 {[%emt 0:02:05]} d5 {[%emt 0:00:14]} 3. c4 {[%emt 0:00:42]} Nf6 {[%emt 0:00:52]} 4. g3 {[%emt 0:03:26]} Be7 {[%emt 0:00:53]} 5. Bg2 {[%emt 0:00:09]} O-O {[%emt 0:00:07]} 6. O-O {[%emt 0:00:12]} dxc4 {[%emt 0:02:34]} 7. Qc2 {[%emt 0:00:58]} a6 {[%emt 0:00:58]} 8. a4 $1 {[%emt 0:08:40] 8.a4 is better than 8.Qxc4.} b6 {[%emt 0:04:16]} 9. Ne5 {[%emt 0:12:46] E05: Open Catalan: 5 Nf3 Be7.} Nd5 {[%emt 0:01:39]} 10. Qxc4 {[%emt 0:03:50]} Bb7 {[%emt 0:01:54][%cal Ob6b5]} 11. Nc3 {[%emt 0:01:51] [#] Prevents b5. White is slightly better.} Ra7 $146 {[%emt 0:06:09]} ({Predecessor:} 11... c6 12. Rd1 b5 13. Qb3 Nd7 14. axb5 axb5 15. Rxa8 Bxa8 16. Nxd5 exd5 17. Nd3 Qb6 {1-0 (33) Morovic Fernandez,I (2535)-Rodriguez Vargas,O (2500) Spain 1990}) 12. e4 {[%emt 0:09:43]} Nxc3 {[%emt 0:02:42]} 13. bxc3 {[%emt 0:00:27]} a5 {[%emt 0:09:48]} 14. Rd1 {[%emt 0:02:38]} Ba6 {[%emt 0:02:52]} 15. Qb3 {[%emt 0:00:08]} Bb7 {[%emt 0:01:35]} 16. Be3 {[%emt 0:01:50]} Nd7 {[%emt 0:00:53]} 17. Nxd7 {[%emt 0:08:32] 0x0.00218a9ad1b7dp-1022s more active pieces. The black rooks are badly placed.} Qxd7 {[%emt 0:00:06]} 18. c4 {[%emt 0:00:06]} Bb4 {[%emt 0:04:23]} 19. d5 {[%emt 0:02:52]} e5 {[%emt 0:03:14]} 20. c5 {[%emt 0:02:52]} bxc5 {[%emt 0:01:12]} 21. Rac1 {[%emt 0:10:46]} Qd6 {[%emt 0:00:17]} 22. Qc2 {[%emt 0:01:37][%cal Re3c5]} Bc8 {[%emt 0:02:04]} 23. Bxc5 {[%emt 0:06:19]} Bxc5 {[%emt 0:00:08]} 24. Qxc5 {[%emt 0:00:04]} Qxc5 {[%emt 0:02:47]} 25. Rxc5 {[%emt 0:00:04]} Bd7 {[%emt 0:03:09]} 26. Rdc1 {[%emt 0:06:50]} Bxa4 {[%emt 0:03:28]} 27. Rxc7 {[%emt 0:00:05]} Rxc7 {[%emt 0:03:41]} 28. Rxc7 $14 {[%emt 0:00:02][%mdl 4096] Endgame KRB-KRB} Ra8 $1 {[%emt 0:01:25] Prevents Ra7. The position is equal.} 29. d6 {[%emt 0:06:00] [#] And now d7 would win.} Kf8 {[%emt 0:03:33]} 30. Bh3 {[%emt 0:03:24]} Rd8 {[%emt 0:04:30]} 31. Rc5 {[%emt 0:02:21][%csl LRa5,LRe5]} Rxd6 {[%emt 0:00:54]} 32. Rxa5 {[%emt 0:01:37]} Bc2 {[%emt 0:00:25]} 33. Rxe5 {[%emt 0:00:46]} Rd4 {[%emt 0:00:21]} 34. f3 {[%emt 0:01:15]} Rd1+ {[%emt 0:00:14]} 35. Kf2 {[%emt 0:00:08]} Rd2+ {[%emt 0:00:05]} 36. Ke3 {[%emt 0:00:05]} Rxh2 {[%emt 0:00:14]} 37. Bd7 {[%emt 0:01:07][%csl Gd7][%cal Re5e8] [#]} g6 {[%emt 0:00:46]} 38. Rb5 {[%emt 0:01:09] Threatens to win with Rb2.} Bd1 {[%emt 0:02:03]} 39. Bc6 {[%emt 0:01:28]} Ra2 {[%emt 0:03:17]} 40. Bd5 {[%emt 0:00:41]} Ra7 {[%emt 0:09:38]} 41. Rb1 {[%emt 0:03:17]} Ra3+ {[%emt 0:01:43]} 42. Kd4 {[%emt 0:03:18]} Bxf3 {[%emt 0:01:32]} 43. Rb7 {[%emt 0:05:36] Against Ra7} f5 {[%emt 0:02:43]} ({Much less strong is} 43... Ra4+ 44. Ke5 Ra3 45. Rxf7+ Ke8 46. Rc7 $16) 44. Ke5 {[%emt 0:01:31]} Bxe4 {[%emt 0:00:51]} 45. Bxe4 {[%emt 0:03:33]} fxe4 {[%emt 0:01:28]} 46. Kxe4 $11 {[%emt 0:00:03] KR-KR} Kg8 {[%emt 0:01:19]} 47. g4 {[%emt 0:01:09]} Ra1 {[%emt 0:00:42]} 48. Kf4 {[%emt 0:00:36]} Rf1+ {[%emt 0:00:11]} 49. Kg5 {[%emt 0:00:31]} Rf7 {[%emt 0:00:21]} 50. Rxf7 {[%emt 0:02:31]} Kxf7 {[%emt 0:00:08]} 51. Kh6 {[%emt 0:00:03]} Kg8 {[%emt 0:01:08]} 52. g5 {[%emt 0:00:06]} Kh8 {[%emt 0:00:04] Weighted Error Value: White=0.03 (flawless) /Black=0.03 (flawless)} 1/2-1/2

[Event "Czech Championship 2022"]
[Site "Usti nad Labem"]
[Date "2022.05.15"]
[Round "2.21"]
[White "Sykora, Ondrej"]
[Black "Nytra, Ondrej"]
[Result "0-1"]
[ECO "C44"]
[WhiteElo "2092"]
[BlackElo "2219"]
[Annotator "TA"]
[PlyCount "42"]
[EventDate "2022.05.12"]
[EventType "swiss"]
[EventCountry "CZE"]
[SourceTitle "playchess.com"]
[Source "ChessBase"]
[SourceQuality "1"]
[TimeControl "40/5400+30:1800+30"]

{[%evp 13,42,0,15,-24,-18,-41,-48,-35,-50,-43,-25,-32,-21,-112,-72,-551,-559,-726,-893,-834,-900,-811,-859,-827,-819,-1045,-991,-1033,-707,-696,-603]} 1. e4 {[%emt 0:23:00]} e5 {[%emt 0:00:05]} 2. Nf3 {[%emt 0:00:06]} Nc6 {[%emt 0:00:04]} 3. c3 {[%emt 0:00:05]} d5 {[%emt 0:00:02]} 4. Qa4 {[%emt 0:00:09]} Bd7 {[%emt 0:00:06]} 5. exd5 {[%emt 0:01:01]} Nd4 {[%emt 0:00:05]} 6. Qd1 {[%emt 0:00:36]} Nxf3+ {[%emt 0:00:04]} 7. Qxf3 {[%emt 0:00:08]} Nf6 {[%emt 0:00:02]} 8. h3 {[%emt 0:04:40] [#] C44: Ponziani Opening and Scotch Gambit.} c6 $146 {[%emt 0:05:35]} ({Predecessor:} 8... e4 9. Qd1 Nxd5 10. d3 exd3 11. Bxd3 Qf6 12. Be4 Be6 13. Qa4+ c6 14. O-O Nb6 15. Qc2 Bd6 16. Nd2 O-O-O 17. Nf3 h6 18. Be3 Rhe8 {½-½ (18) Gavarrete,N (2379)-Gines Esteo,P (2470) Zaragoza 2021}) 9. Qg3 {[%emt 0:06:15]} Bd6 {[%emt 0:10:21]} ({But not} 9... cxd5 10. Qxe5+ Be7 11. d4 $11) 10. Qxg7 {[%emt 0:02:53] Black is slightly better.} Rg8 {[%emt 0:02:22]} 11. Qh6 {[%emt 0:00:08]} Rg6 {[%emt 0:01:18]} 12. Qh4 {[%emt 0:00:10]} cxd5 {[%emt 0:00:25] Hoping for ...Be7.} 13. Na3 {[%emt 0:03:11]} (13. d4 $11 {keeps the balance.}) 13... Qb6 {[%emt 0:11:20] [#] Threatens to win with ...Be7. Black is more active.} 14. g4 $2 {[%emt 0:04:31][%mdl 8192]} (14. Nc2 $17 {is more resistant.}) 14... Ne4 $19 {[%emt 0:01:25] Black is clearly winning.} 15. Rh2 {[%emt 0:00:25]} Bxa3 {[%emt 0:09:11]} 16. Qxh7 {[%emt 0:04:13]} Ng5 {[%emt 0:02:49]} 17. Qh8+ {[%emt 0:00:34]} Bf8 {[%emt 0:05:39]} 18. Be2 {[%emt 0:00:33] Inhibits Nf3+.} O-O-O {[%emt 0:01:24] [#] White must now prevent ...Bd6.} ({Weaker is} 18... Qf6 19. Qxf6 Rxf6 20. d4 Nf3+ 21. Bxf3 Rxf3 22. dxe5 $17) 19. d3 {[%emt 0:13:54]} Bh6 {[%emt 0:04:03]} 20. Qxe5 {[%emt 0:00:36]} Nf3+ {[%emt 0:06:25]} 21. Bxf3 {[%emt 0:00:07]} Re6 {[%emt 0:00:38] Black took control after the opening.  Weighted Error Value: White=1.02/Black=0.32} 0-1